[Event "Titled Tuesday Blitz April 11 Early 2023"]
[White "Zaichenko, Daria"]
[Black "Palencia Morales, Wilson Guillermo"]
[WhiteFideId "4197453"]
[BlackFideId "4401859"]
[WhiteElo "2039"]
[BlackElo "2139"]
[Result "1-0"]
[Round "07"]
[TimeControl "180+2"]
[Date "2023.04.11"]
[WhiteClock "0:01:09"]
[BlackClock "0:00:52"]

1. e4 {[%clk 0:02:54]}  c5 {[%clk 0:02:59]} 2. Nf3 {[%clk 0:02:54]}  Nc6 {[%clk 0:02:57]} 3. d4 {[%clk 0:02:54]}  cxd4 {[%clk 0:02:58]} 4. Nxd4 {[%clk 0:02:55]}  Nf6 {[%clk 0:02:58]} 5. Nc3 {[%clk 0:02:54]}  e5 {[%clk 0:02:58]} 6. Ndb5 {[%clk 0:02:53]}  d6 {[%clk 0:02:56]} 7. Bg5 {[%clk 0:02:53]}  Be7 {[%clk 0:02:56]} 8. Na3 {[%clk 0:02:52]}  a6 {[%clk 0:02:55]} 9. Bxf6 {[%clk 0:02:52]}  Bxf6 {[%clk 0:02:55]} 10. Nd5 {[%clk 0:02:51]}  b5 {[%clk 0:02:55]} 11. c3 {[%clk 0:02:49]}  O-O {[%clk 0:02:55]} 12. Nc2 {[%clk 0:02:50]}  Bg5 {[%clk 0:02:53]} 13. h4 {[%clk 0:02:49]}  Bh6 {[%clk 0:02:53]} 14. g4 {[%clk 0:02:46]}  Bf4 {[%clk 0:02:44]} 15. Qf3 {[%clk 0:02:43]}  Bb7 {[%clk 0:02:40]} 16. Bd3 {[%clk 0:02:40]}  Re8 {[%clk 0:02:37]} 17. Nxf4 {[%clk 0:02:38]}  exf4 {[%clk 0:02:37]} 18. Qxf4 {[%clk 0:02:31]}  Ne5 {[%clk 0:02:36]} 19. O-O-O {[%clk 0:02:30]}  Nxd3+ {[%clk 0:02:34]} 20. Rxd3 {[%clk 0:02:28]}  Bxe4 {[%clk 0:02:34]} 21. Rxd6 {[%clk 0:02:28]}  Qa5 {[%clk 0:02:08]} 22. Rd7 {[%clk 0:02:11]}  Qxa2 {[%clk 0:02:05]} 23. Re1 {[%clk 0:02:07]}  Bc6 {[%clk 0:01:42]} 24. Rxe8+ {[%clk 0:02:00]}  Rxe8 {[%clk 0:01:43]} 25. Rc7 {[%clk 0:01:59]}  Qd5 {[%clk 0:01:38]} 26. Nd4 {[%clk 0:01:53]}  Bd7 {[%clk 0:01:34]} 27. Kc2 {[%clk 0:01:42]}  h5 {[%clk 0:01:30]} 28. g5 {[%clk 0:01:38]}  a5 {[%clk 0:01:27]} 29. f3 {[%clk 0:01:32]}  b4 {[%clk 0:01:26]} 30. c4 {[%clk 0:01:29]}  Ba4+ {[%clk 0:01:16]} 31. b3 {[%clk 0:01:28]}  Bxb3+ {[%clk 0:01:12]} 32. Kxb3 {[%clk 0:01:27]}  a4+ {[%clk 0:01:12]} 33. Kb2 {[%clk 0:01:20]}  Re2+ {[%clk 0:01:00]} 34. Nxe2 {[%clk 0:01:19]}  a3+ {[%clk 0:01:01]} 35. Ka2 {[%clk 0:01:13]}  b3+ {[%clk 0:00:56]} 36. Kxa3 {[%clk 0:01:11]}  Qa5+ {[%clk 0:00:55]} 37. Kxb3 {[%clk 0:01:11]}  Qb6+ {[%clk 0:00:54]} 38. Kc2 {[%clk 0:01:08]}  Qg6+ {[%clk 0:00:52]} 39. Kc3 {[%clk 0:01:09]} 1-0


[Site "https://www.chess.com"]

[Event "Titled Tuesday Blitz April 11 Early 2023"]
[White "Larina, Maria"]
[Black "Balint, Vilmos"]
[WhiteFideId "24113182"]
[BlackFideId "718050"]
[WhiteElo "1848"]
[BlackElo "2034"]
[Result "0-1"]
[Round "07"]
[TimeControl "180+2"]
[Date "2023.04.11"]
[WhiteClock "0:00:11"]
[BlackClock "0:00:33"]

1. e4 {[%clk 0:03:00]}  e6 {[%clk 0:00:45]} 2. d4 {[%clk 0:02:59]}  d5 {[%clk 0:00:46]} 3. Nc3 {[%clk 0:02:59]}  Bb4 {[%clk 0:00:45]} 4. exd5 {[%clk 0:02:59]}  exd5 {[%clk 0:00:45]} 5. Bd3 {[%clk 0:02:59]}  Bxc3+ {[%clk 0:00:46]} 6. bxc3 {[%clk 0:02:59]}  Nf6 {[%clk 0:00:47]} 7. Ne2 {[%clk 0:02:58]}  O-O {[%clk 0:00:48]} 8. O-O {[%clk 0:02:59]}  c6 {[%clk 0:00:49]} 9. Bg5 {[%clk 0:02:58]}  h6 {[%clk 0:00:50]} 10. Bh4 {[%clk 0:02:58]}  g5 {[%clk 0:00:50]} 11. Bg3 {[%clk 0:02:58]}  Bg4 {[%clk 0:00:51]} 12. f3 {[%clk 0:02:58]}  Bh5 {[%clk 0:00:51]} 13. c4 {[%clk 0:02:53]}  Bg6 {[%clk 0:00:50]} 14. c5 {[%clk 0:02:49]}  Nbd7 {[%clk 0:00:50]} 15. Bd6 {[%clk 0:02:32]}  Re8 {[%clk 0:00:50]} 16. Re1 {[%clk 0:02:32]}  Qa5 {[%clk 0:00:50]} 17. c3 {[%clk 0:02:24]}  Re6 {[%clk 0:00:48]} 18. Bxg6 {[%clk 0:02:14]}  fxg6 {[%clk 0:00:49]} 19. Qd3 {[%clk 0:02:11]}  Rae8 {[%clk 0:00:49]} 20. Qxg6+ {[%clk 0:02:07]}  Kh8 {[%clk 0:00:49]} 21. Qxh6+ {[%clk 0:02:07]}  Nh7 {[%clk 0:00:49]} 22. Qh5 {[%clk 0:01:54]}  Rxe2 {[%clk 0:00:49]} 23. Be5+ {[%clk 0:01:22]}  Nxe5 {[%clk 0:00:49]} 24. dxe5 {[%clk 0:01:20]}  Rxe1+ {[%clk 0:00:47]} 25. Rxe1 {[%clk 0:01:19]}  Re7 {[%clk 0:00:46]} 26. Kf1 {[%clk 0:00:17]}  Qxc3 {[%clk 0:00:42]} 27. e6 {[%clk 0:00:18]}  Qc4+ {[%clk 0:00:42]} 28. Kf2 {[%clk 0:00:18]}  Qxc5+ {[%clk 0:00:42]} 29. Kf1 {[%clk 0:00:18]}  Qc4+ {[%clk 0:00:42]} 30. Kf2 {[%clk 0:00:18]}  Qxa2+ {[%clk 0:00:42]} 31. Re2 {[%clk 0:00:18]}  Qc4 {[%clk 0:00:41]} 32. Qg6 {[%clk 0:00:17]}  Qd4+ {[%clk 0:00:39]} 33. Kf1 {[%clk 0:00:17]}  Qf6 {[%clk 0:00:40]} 34. Qd3 {[%clk 0:00:16]}  Rxe6 {[%clk 0:00:40]} 35. Rxe6 {[%clk 0:00:16]}  Qxe6 {[%clk 0:00:41]} 36. Qc3+ {[%clk 0:00:16]}  Kg8 {[%clk 0:00:42]} 37. Qa3 {[%clk 0:00:15]}  a6 {[%clk 0:00:40]} 38. Qb4 {[%clk 0:00:15]}  b5 {[%clk 0:00:41]} 39. Qc5 {[%clk 0:00:14]}  Nf6 {[%clk 0:00:39]} 40. Qd4 {[%clk 0:00:14]}  Kf7 {[%clk 0:00:38]} 41. Qd3 {[%clk 0:00:14]}  Qe5 {[%clk 0:00:37]} 42. Kf2 {[%clk 0:00:12]}  Qb2+ {[%clk 0:00:36]} 43. Kg3 {[%clk 0:00:12]}  Qe5+ {[%clk 0:00:33]} 44. Kf2 {[%clk 0:00:12]}  c5 {[%clk 0:00:33]} 45. g3 {[%clk 0:00:11]} 0-1


[Site "https://www.chess.com"]

[Event "Titled Tuesday Blitz April 11 Early 2023"]
[White "micke12a"]
[Black "Sankalan Shah"]
[BlackFideId "25600362"]
[WhiteElo "2311"]
[BlackElo "2118"]
[Result "1-0"]
[Round "07"]
[TimeControl "180+2"]
[Date "2023.04.11"]
[WhiteClock "0:00:06"]
[BlackClock "0:00:04"]

1. d4 {[%clk 0:03:00]}  Nf6 {[%clk 0:02:57]} 2. Nc3 {[%clk 0:03:01]}  d5 {[%clk 0:02:56]} 3. Bf4 {[%clk 0:03:02]}  b5 {[%clk 0:02:47]} 4. Nxb5 {[%clk 0:02:55]}  Na6 {[%clk 0:02:47]} 5. a3 {[%clk 0:02:52]}  c6 {[%clk 0:02:45]} 6. Nc3 {[%clk 0:02:51]}  e6 {[%clk 0:02:44]} 7. e3 {[%clk 0:02:50]}  Bd6 {[%clk 0:02:44]} 8. Bxd6 {[%clk 0:02:50]}  Qxd6 {[%clk 0:02:45]} 9. Nf3 {[%clk 0:02:51]}  Nc7 {[%clk 0:02:32]} 10. Be2 {[%clk 0:02:49]}  Rb8 {[%clk 0:02:29]} 11. b3 {[%clk 0:02:40]}  O-O {[%clk 0:02:24]} 12. O-O {[%clk 0:02:39]}  c5 {[%clk 0:02:12]} 13. dxc5 {[%clk 0:02:36]}  Qxc5 {[%clk 0:02:12]} 14. Qd4 {[%clk 0:02:37]}  Qe7 {[%clk 0:02:04]} 15. Qxa7 {[%clk 0:02:32]}  Bb7 {[%clk 0:01:56]} 16. Qd4 {[%clk 0:02:29]}  Rfc8 {[%clk 0:01:54]} 17. Na4 {[%clk 0:02:26]}  Nce8 {[%clk 0:01:47]} 18. c4 {[%clk 0:02:21]}  dxc4 {[%clk 0:01:40]} 19. Bxc4 {[%clk 0:02:22]}  Nd6 {[%clk 0:01:37]} 20. Bd3 {[%clk 0:02:14]}  Rd8 {[%clk 0:01:32]} 21. b4 {[%clk 0:01:59]}  Nde4 {[%clk 0:01:19]} 22. Qc4 {[%clk 0:01:52]}  Rbc8 {[%clk 0:01:14]} 23. Qb3 {[%clk 0:01:48]}  Bd5 {[%clk 0:01:02]} 24. Qb2 {[%clk 0:01:45]}  Bc6 {[%clk 0:00:54]} 25. Bc2 {[%clk 0:01:43]}  Nd2 {[%clk 0:00:41]} 26. Nxd2 {[%clk 0:01:35]}  Rxd2 {[%clk 0:00:41]} 27. Nc5 {[%clk 0:01:34]}  Ng4 {[%clk 0:00:36]} 28. Rad1 {[%clk 0:01:12]}  Qh4 {[%clk 0:00:33]} 29. h3 {[%clk 0:00:58]}  Rxf2 {[%clk 0:00:32]} 30. Bxh7+ {[%clk 0:00:57]}  Kxh7 {[%clk 0:00:27]} 31. Rxf2 {[%clk 0:00:58]}  Nxf2 {[%clk 0:00:21]} 32. Qxf2 {[%clk 0:00:58]}  Qe4 {[%clk 0:00:20]} 33. Rd4 {[%clk 0:00:54]}  Qb1+ {[%clk 0:00:19]} 34. Kh2 {[%clk 0:00:53]}  Kg8 {[%clk 0:00:14]} 35. a4 {[%clk 0:00:49]}  Qa1 {[%clk 0:00:10]} 36. b5 {[%clk 0:00:49]}  Bd5 {[%clk 0:00:10]} 37. Nd3 {[%clk 0:00:47]}  Qb1 {[%clk 0:00:10]} 38. Nf4 {[%clk 0:00:43]}  Rc2 {[%clk 0:00:10]} 39. Rd2 {[%clk 0:00:36]}  Rc1 {[%clk 0:00:09]} 40. Nxd5 {[%clk 0:00:34]}  Rh1+ {[%clk 0:00:09]} 41. Kg3 {[%clk 0:00:35]}  exd5 {[%clk 0:00:09]} 42. Qf3 {[%clk 0:00:29]}  Qg6+ {[%clk 0:00:09]} 43. Kf2 {[%clk 0:00:30]}  Ra1 {[%clk 0:00:07]} 44. Qg4 {[%clk 0:00:22]}  Qf6+ {[%clk 0:00:06]} 45. Kg3 {[%clk 0:00:22]}  Rf1 {[%clk 0:00:05]} 46. Kh2 {[%clk 0:00:12]}  Ra1 {[%clk 0:00:03]} 47. Rxd5 {[%clk 0:00:08]}  Qf1 {[%clk 0:00:03]} 48. Rd8+ {[%clk 0:00:07]}  Kh7 {[%clk 0:00:04]} 49. Qh5# {[%clk 0:00:06]} 1-0


[Site "https://www.chess.com"]

[Event "Titled Tuesday Blitz April 11 Early 2023"]
[White "Ovezdurdyyeva, Jemal"]
[Black "Einarsson, Halldor Gretar"]
[WhiteFideId "14001888"]
[BlackFideId "2300150"]
[WhiteElo "2043"]
[BlackElo "2142"]
[Result "0-1"]
[Round "07"]
[TimeControl "180+2"]
[Date "2023.04.11"]
[WhiteClock "0:00:24"]
[BlackClock "0:00:14"]

1. e4 {[%clk 0:03:00]}  c5 {[%clk 0:02:59]} 2. Nf3 {[%clk 0:03:00]}  Nc6 {[%clk 0:02:59]} 3. c3 {[%clk 0:03:00]}  Nf6 {[%clk 0:02:58]} 4. Bd3 {[%clk 0:02:56]}  e5 {[%clk 0:02:54]} 5. O-O {[%clk 0:02:52]}  g6 {[%clk 0:02:53]} 6. Bc2 {[%clk 0:02:46]}  Bg7 {[%clk 0:02:53]} 7. d4 {[%clk 0:02:44]}  cxd4 {[%clk 0:02:52]} 8. cxd4 {[%clk 0:02:43]}  O-O {[%clk 0:02:22]} 9. d5 {[%clk 0:02:38]}  Nb4 {[%clk 0:02:07]} 10. Nxe5 {[%clk 0:02:24]}  Qc7 {[%clk 0:02:04]} 11. Nxg6 {[%clk 0:02:05]}  hxg6 {[%clk 0:02:00]} 12. Nc3 {[%clk 0:02:02]}  Nxc2 {[%clk 0:01:52]} 13. Qxc2 {[%clk 0:02:02]}  b6 {[%clk 0:01:44]} 14. Qe2 {[%clk 0:01:53]}  Re8 {[%clk 0:01:11]} 15. Qf3 {[%clk 0:01:45]}  Ba6 {[%clk 0:01:05]} 16. Re1 {[%clk 0:01:45]}  Rac8 {[%clk 0:00:48]} 17. Bf4 {[%clk 0:01:43]}  Qc4 {[%clk 0:00:45]} 18. Rac1 {[%clk 0:01:32]}  Qb4 {[%clk 0:00:43]} 19. Bg5 {[%clk 0:01:08]}  Nh7 {[%clk 0:00:16]} 20. Bh4 {[%clk 0:00:35]}  Qxb2 {[%clk 0:00:16]} 21. e5 {[%clk 0:00:24]}  Rxe5 {[%clk 0:00:14]} 0-1


[Site "https://www.chess.com"]

[Event "Titled Tuesday Blitz April 11 Early 2023"]
[White "Rian, Kapriaga"]
[Black "Ciuffoletti, Paolo"]
[WhiteFideId "7103263"]
[BlackFideId "807630"]
[WhiteElo "2305"]
[BlackElo "2143"]
[Result "1/2-1/2"]
[Round "07"]
[TimeControl "180+2"]
[Date "2023.04.11"]
[WhiteClock "0:00:12"]
[BlackClock "0:00:06"]

1. d4 {[%clk 0:03:00]}  d5 {[%clk 0:02:58]} 2. Nf3 {[%clk 0:03:01]}  Nf6 {[%clk 0:02:57]} 3. Bf4 {[%clk 0:03:01]}  c5 {[%clk 0:02:56]} 4. e3 {[%clk 0:03:01]}  Nc6 {[%clk 0:02:56]} 5. Nbd2 {[%clk 0:03:02]}  e6 {[%clk 0:02:40]} 6. c3 {[%clk 0:03:01]}  cxd4 {[%clk 0:02:40]} 7. exd4 {[%clk 0:03:01]}  Bd6 {[%clk 0:02:39]} 8. Ne5 {[%clk 0:03:01]}  O-O {[%clk 0:02:26]} 9. Bd3 {[%clk 0:03:00]}  Qc7 {[%clk 0:02:03]} 10. Qe2 {[%clk 0:02:59]}  Nd7 {[%clk 0:01:57]} 11. Ndf3 {[%clk 0:02:49]}  Bxe5 {[%clk 0:01:40]} 12. dxe5 {[%clk 0:02:44]}  f6 {[%clk 0:00:47]} 13. O-O {[%clk 0:02:27]}  fxe5 {[%clk 0:00:46]} 14. Bxh7+ {[%clk 0:02:26]}  Kxh7 {[%clk 0:00:43]} 15. Ng5+ {[%clk 0:02:26]}  Kg8 {[%clk 0:00:42]} 16. Qh5 {[%clk 0:02:14]}  Nf6 {[%clk 0:00:40]} 17. Qg6 {[%clk 0:01:58]}  exf4 {[%clk 0:00:37]} 18. Rae1 {[%clk 0:01:50]}  e5 {[%clk 0:00:33]} 19. Rd1 {[%clk 0:01:39]}  Ne7 {[%clk 0:00:32]} 20. Qc2 {[%clk 0:01:35]}  Bf5 {[%clk 0:00:30]} 21. Qb3 {[%clk 0:01:30]}  Rfd8 {[%clk 0:00:21]} 22. Rfe1 {[%clk 0:01:28]}  Ne4 {[%clk 0:00:21]} 23. Nxe4 {[%clk 0:01:16]}  Bxe4 {[%clk 0:00:20]} 24. Rxe4 {[%clk 0:01:16]}  Qb6 {[%clk 0:00:20]} 25. Rb4 {[%clk 0:01:15]}  Qg6 {[%clk 0:00:18]} 26. Rxb7 {[%clk 0:01:14]}  Nf5 {[%clk 0:00:17]} 27. Rxd5 {[%clk 0:01:10]}  Rxd5 {[%clk 0:00:17]} 28. Qxd5+ {[%clk 0:01:10]}  Kh7 {[%clk 0:00:17]} 29. Rxg7+ {[%clk 0:01:01]}  Kxg7 {[%clk 0:00:16]} 30. Qxa8 {[%clk 0:01:00]}  Nh4 {[%clk 0:00:16]} 31. h3 {[%clk 0:00:50]}  f3 {[%clk 0:00:10]} 32. g3 {[%clk 0:00:48]}  Qb1+ {[%clk 0:00:10]} 33. Kh2 {[%clk 0:00:47]}  Qf1 {[%clk 0:00:09]} 34. Qb7+ {[%clk 0:00:37]}  Kh6 {[%clk 0:00:09]} 35. Qc6+ {[%clk 0:00:32]}  Kh7 {[%clk 0:00:08]} 36. Qd7+ {[%clk 0:00:27]}  Kh6 {[%clk 0:00:08]} 37. Qc6+ {[%clk 0:00:13]}  Kh7 {[%clk 0:00:07]} 38. Qd7+ {[%clk 0:00:12]}  Kh6 {[%clk 0:00:06]} 39. Qc6+ {[%clk 0:00:12]} 1/2-1/2


[Site "https://www.chess.com"]

[Event "Titled Tuesday Blitz April 11 Early 2023"]
[White "Kula, Robert"]
[Black "Jaivardhan Raj"]
[WhiteFideId "1101218"]
[BlackFideId "25744437"]
[WhiteElo "2180"]
[BlackElo "1772"]
[Result "1-0"]
[Round "07"]
[TimeControl "180+2"]
[Date "2023.04.11"]
[WhiteClock "0:01:27"]
[BlackClock "0:01:07"]

1. d4 {[%clk 0:03:00]}  Nf6 {[%clk 0:02:58]} 2. c4 {[%clk 0:03:00]}  e6 {[%clk 0:02:58]} 3. Nc3 {[%clk 0:02:58]}  Bb4 {[%clk 0:02:57]} 4. Nf3 {[%clk 0:02:56]}  b6 {[%clk 0:02:57]} 5. e3 {[%clk 0:02:56]}  Bb7 {[%clk 0:02:57]} 6. Bd3 {[%clk 0:02:57]}  Ne4 {[%clk 0:02:52]} 7. Qc2 {[%clk 0:02:49]}  f5 {[%clk 0:02:50]} 8. O-O {[%clk 0:02:49]}  Bxc3 {[%clk 0:02:48]} 9. bxc3 {[%clk 0:02:49]}  O-O {[%clk 0:02:47]} 10. a4 {[%clk 0:02:49]}  a5 {[%clk 0:02:46]} 11. Rb1 {[%clk 0:02:48]}  d6 {[%clk 0:02:43]} 12. Ba3 {[%clk 0:02:46]}  Nd7 {[%clk 0:02:42]} 13. Nd2 {[%clk 0:02:44]}  Ng5 {[%clk 0:02:34]} 14. f4 {[%clk 0:02:40]}  Nf7 {[%clk 0:02:29]} 15. c5 {[%clk 0:02:40]}  dxc5 {[%clk 0:02:28]} 16. dxc5 {[%clk 0:02:40]}  Ba6 {[%clk 0:02:23]} 17. Bxa6 {[%clk 0:02:27]}  Rxa6 {[%clk 0:02:22]} 18. cxb6 {[%clk 0:02:27]}  Re8 {[%clk 0:02:17]} 19. b7 {[%clk 0:02:20]}  Qb8 {[%clk 0:02:15]} 20. c4 {[%clk 0:02:19]}  Rb6 {[%clk 0:02:13]} 21. c5 {[%clk 0:02:14]}  Rxb7 {[%clk 0:01:59]} 22. Rxb7 {[%clk 0:02:13]}  Qxb7 {[%clk 0:01:59]} 23. c6 {[%clk 0:02:13]}  Qa7 {[%clk 0:01:57]} 24. cxd7 {[%clk 0:02:12]}  Qxe3+ {[%clk 0:01:56]} 25. Kh1 {[%clk 0:02:12]}  Ra8 {[%clk 0:01:51]} 26. Nc4 {[%clk 0:02:07]}  Qd4 {[%clk 0:01:44]} 27. Rd1 {[%clk 0:02:00]}  Qxf4 {[%clk 0:01:42]} 28. Be7 {[%clk 0:01:58]}  Nd8 {[%clk 0:01:37]} 29. Nxa5 {[%clk 0:01:51]}  Rxa5 {[%clk 0:01:29]} 30. Bxd8 {[%clk 0:01:50]}  Rd5 {[%clk 0:01:28]} 31. Bg5 {[%clk 0:01:30]}  Qxg5 {[%clk 0:01:08]} 32. Rxd5 {[%clk 0:01:28]}  exd5 {[%clk 0:01:07]} 33. Qxc7 {[%clk 0:01:27]} 1-0


[Site "https://www.chess.com"]

[Event "Titled Tuesday Blitz April 11 Early 2023"]
[White "Winkels, Marcel"]
[Black "Kohler, Aran"]
[WhiteFideId "1003887"]
[BlackFideId "1002856"]
[WhiteElo "1900"]
[BlackElo "2288"]
[Result "0-1"]
[Round "07"]
[TimeControl "180+2"]
[Date "2023.04.11"]
[WhiteClock "0:00:02"]
[BlackClock "0:00:27"]

1. d4 {[%clk 0:03:00]}  d5 {[%clk 0:02:59]} 2. Nc3 {[%clk 0:03:00]}  c6 {[%clk 0:02:57]} 3. Bf4 {[%clk 0:02:59]}  Bf5 {[%clk 0:02:57]} 4. e3 {[%clk 0:03:00]}  e6 {[%clk 0:02:56]} 5. f3 {[%clk 0:03:00]}  h6 {[%clk 0:02:55]} 6. g4 {[%clk 0:03:00]}  Bh7 {[%clk 0:02:55]} 7. Bd3 {[%clk 0:02:58]}  Bxd3 {[%clk 0:02:51]} 8. Qxd3 {[%clk 0:02:59]}  Bd6 {[%clk 0:02:52]} 9. Nge2 {[%clk 0:02:57]}  Ne7 {[%clk 0:02:46]} 10. O-O-O {[%clk 0:02:46]}  Ng6 {[%clk 0:02:37]} 11. Bxd6 {[%clk 0:02:41]}  Qxd6 {[%clk 0:02:36]} 12. h4 {[%clk 0:02:42]}  Na6 {[%clk 0:02:35]} 13. h5 {[%clk 0:02:23]}  Ne7 {[%clk 0:02:35]} 14. e4 {[%clk 0:02:23]}  O-O-O {[%clk 0:02:28]} 15. e5 {[%clk 0:02:20]}  Qb4 {[%clk 0:02:15]} 16. a3 {[%clk 0:02:19]}  Qa5 {[%clk 0:02:15]} 17. Kb1 {[%clk 0:02:16]}  Kb8 {[%clk 0:02:15]} 18. Nc1 {[%clk 0:02:15]}  c5 {[%clk 0:02:13]} 19. Nb3 {[%clk 0:02:14]}  Qb6 {[%clk 0:02:10]} 20. Na4 {[%clk 0:02:06]}  c4 {[%clk 0:02:10]} 21. Nxb6 {[%clk 0:01:54]}  cxd3 {[%clk 0:02:10]} 22. Na4 {[%clk 0:01:52]}  dxc2+ {[%clk 0:02:05]} 23. Kxc2 {[%clk 0:01:52]}  Rc8+ {[%clk 0:01:54]} 24. Kd3 {[%clk 0:01:51]}  Nc6 {[%clk 0:01:47]} 25. Nac5 {[%clk 0:01:48]}  Nc7 {[%clk 0:01:44]} 26. Rc1 {[%clk 0:01:45]}  Rcd8 {[%clk 0:01:35]} 27. Rc2 {[%clk 0:01:34]}  f6 {[%clk 0:01:26]} 28. exf6 {[%clk 0:01:26]}  gxf6 {[%clk 0:01:26]} 29. Re1 {[%clk 0:01:26]}  e5 {[%clk 0:01:26]} 30. Rce2 {[%clk 0:01:16]}  Rhe8 {[%clk 0:01:18]} 31. Re3 {[%clk 0:01:00]}  b6 {[%clk 0:01:18]} 32. Na4 {[%clk 0:00:57]}  Ne6 {[%clk 0:01:19]} 33. dxe5 {[%clk 0:00:49]}  fxe5 {[%clk 0:01:18]} 34. Kc2 {[%clk 0:00:46]}  Rc8 {[%clk 0:00:59]} 35. Kb1 {[%clk 0:00:45]}  Ned4 {[%clk 0:00:57]} 36. Nxd4 {[%clk 0:00:44]}  Nxd4 {[%clk 0:00:56]} 37. Rxe5 {[%clk 0:00:43]}  Rxe5 {[%clk 0:00:56]} 38. Rxe5 {[%clk 0:00:44]}  Nxf3 {[%clk 0:00:56]} 39. Rxd5 {[%clk 0:00:43]}  Rg8 {[%clk 0:00:54]} 40. Rf5 {[%clk 0:00:38]}  Nd4 {[%clk 0:00:52]} 41. Rf4 {[%clk 0:00:36]}  Ne6 {[%clk 0:00:51]} 42. Re4 {[%clk 0:00:34]}  Ng5 {[%clk 0:00:51]} 43. Rd4 {[%clk 0:00:34]}  Kc7 {[%clk 0:00:49]} 44. Nc3 {[%clk 0:00:33]}  Rf8 {[%clk 0:00:48]} 45. Nd5+ {[%clk 0:00:27]}  Kb7 {[%clk 0:00:47]} 46. Nf4 {[%clk 0:00:25]}  Nf3 {[%clk 0:00:45]} 47. Re4 {[%clk 0:00:21]}  Nd2+ {[%clk 0:00:44]} 48. Kc2 {[%clk 0:00:21]}  Nxe4 {[%clk 0:00:45]} 49. Ne6 {[%clk 0:00:20]}  Rf2+ {[%clk 0:00:44]} 50. Kd3 {[%clk 0:00:20]}  Nf6 {[%clk 0:00:39]} 51. g5 {[%clk 0:00:16]}  hxg5 {[%clk 0:00:39]} 52. h6 {[%clk 0:00:16]}  g4 {[%clk 0:00:36]} 53. Ng5 {[%clk 0:00:11]}  Rh2 {[%clk 0:00:35]} 54. Ke3 {[%clk 0:00:10]}  g3 {[%clk 0:00:34]} 55. Kf3 {[%clk 0:00:09]}  Rxb2 {[%clk 0:00:34]} 56. Kxg3 {[%clk 0:00:09]}  Rb3+ {[%clk 0:00:34]} 57. Kf4 {[%clk 0:00:09]}  Rb5 {[%clk 0:00:31]} 58. h7 {[%clk 0:00:07]}  Nxh7 {[%clk 0:00:30]} 59. Nxh7 {[%clk 0:00:07]}  Ra5 {[%clk 0:00:31]} 60. Nf6 {[%clk 0:00:06]}  Rxa3 {[%clk 0:00:31]} 61. Ke4 {[%clk 0:00:07]}  a5 {[%clk 0:00:30]} 62. Nd5 {[%clk 0:00:06]}  Ra4+ {[%clk 0:00:29]} 63. Kd3 {[%clk 0:00:06]}  Rh4 {[%clk 0:00:29]} 64. Nf6 {[%clk 0:00:02]}  Kc6 {[%clk 0:00:27]} 65. Ne4 {[%clk 0:00:02]}  Rxe4 {[%clk 0:00:27]} 66. Kxe4 {[%clk 0:00:02]}  Kc5 {[%clk 0:00:28]} 67. Kd3 {[%clk 0:00:02]}  b5 {[%clk 0:00:28]} 68. Kc2 {[%clk 0:00:03]}  Kc4 {[%clk 0:00:28]} 69. Kb2 {[%clk 0:00:03]}  b4 {[%clk 0:00:28]} 70. Ka2 {[%clk 0:00:03]}  Kc3 {[%clk 0:00:28]} 71. Ka1 {[%clk 0:00:03]}  b3 {[%clk 0:00:26]} 72. Kb1 {[%clk 0:00:03]}  b2 {[%clk 0:00:27]} 73. Ka2 {[%clk 0:00:02]}  Kc2 {[%clk 0:00:27]} 74. Ka3 {[%clk 0:00:02]}  b1=Q {[%clk 0:00:27]} 75. Ka4 {[%clk 0:00:02]}  Qb4# {[%clk 0:00:27]} 0-1


[Site "https://www.chess.com"]

[Event "Titled Tuesday Blitz April 11 Early 2023"]
[White "Dahlgren, James Allen"]
[Black "Nery Junior, Jose Antonio"]
[WhiteFideId "22256873"]
[BlackFideId "2104822"]
[WhiteElo "2162"]
[BlackElo "2197"]
[Result "1-0"]
[Round "07"]
[TimeControl "180+2"]
[Date "2023.04.11"]
[WhiteClock "0:01:08"]
[BlackClock "0:00:13"]

1. d3 {[%clk 0:02:57]}  c5 {[%clk 0:02:50]} 2. f4 {[%clk 0:02:58]}  g6 {[%clk 0:02:49]} 3. Nf3 {[%clk 0:02:56]}  Bg7 {[%clk 0:02:50]} 4. e4 {[%clk 0:02:47]}  d6 {[%clk 0:02:50]} 5. Nc3 {[%clk 0:02:48]}  Nc6 {[%clk 0:02:49]} 6. Be2 {[%clk 0:02:48]}  Nf6 {[%clk 0:02:49]} 7. O-O {[%clk 0:02:49]}  O-O {[%clk 0:02:48]} 8. h3 {[%clk 0:02:50]}  Rb8 {[%clk 0:02:48]} 9. Be3 {[%clk 0:02:50]}  b5 {[%clk 0:02:48]} 10. Qd2 {[%clk 0:02:48]}  b4 {[%clk 0:02:45]} 11. Nd1 {[%clk 0:02:48]}  Bb7 {[%clk 0:02:39]} 12. g4 {[%clk 0:02:49]}  Nd7 {[%clk 0:02:18]} 13. c4 {[%clk 0:02:48]}  bxc3 {[%clk 0:02:16]} 14. bxc3 {[%clk 0:02:48]}  Ba8 {[%clk 0:01:53]} 15. Rc1 {[%clk 0:02:42]}  Qa5 {[%clk 0:01:51]} 16. c4 {[%clk 0:02:25]}  Qxd2 {[%clk 0:01:48]} 17. Bxd2 {[%clk 0:02:26]}  Nd4 {[%clk 0:01:46]} 18. Nxd4 {[%clk 0:02:23]}  Bxd4+ {[%clk 0:01:46]} 19. Be3 {[%clk 0:02:24]}  Bxe3+ {[%clk 0:01:45]} 20. Nxe3 {[%clk 0:02:24]}  Rb2 {[%clk 0:01:46]} 21. Kf2 {[%clk 0:02:17]}  Rxa2 {[%clk 0:01:44]} 22. Ra1 {[%clk 0:02:18]}  Rb2 {[%clk 0:01:26]} 23. Rxa7 {[%clk 0:02:16]}  Bc6 {[%clk 0:01:25]} 24. Rc7 {[%clk 0:02:02]}  Rb6 {[%clk 0:01:22]} 25. Ra1 {[%clk 0:02:01]}  e6 {[%clk 0:01:10]} 26. Raa7 {[%clk 0:02:00]}  Nf6 {[%clk 0:01:10]} 27. g5 {[%clk 0:01:56]}  Ne8 {[%clk 0:00:46]} 28. Re7 {[%clk 0:01:37]}  Ng7 {[%clk 0:00:46]} 29. Ng4 {[%clk 0:01:32]}  Ra8 {[%clk 0:00:19]} 30. Nh6+ {[%clk 0:01:24]}  Kh8 {[%clk 0:00:17]} 31. Nxf7+ {[%clk 0:01:23]}  Kg8 {[%clk 0:00:18]} 32. Nh6+ {[%clk 0:01:09]}  Kh8 {[%clk 0:00:18]} 33. Rxg7 {[%clk 0:01:09]}  Rxa7 {[%clk 0:00:13]} 34. Rg8# {[%clk 0:01:08]} 1-0


[Site "https://www.chess.com"]